bitfinex-derivatives/quotes_BTCF0:USTF0_20250322
["timestamp","ask_amount","ask_price","bid_price","bid_amount"]
[1742625100200,0.3057798,84272.0,84271.0,0.37280954]
[1742625100503,0.3057798,84272.0,84271.0,0.48500954]
[1742625101798,0.3057798,84272.0,84271.0,0.37280954]
[1742625101999,0.3057798,84272.0,84271.0,0.48500954]
[1742625104207,0.3057798,84272.0,84271.0,0.37280954]
[1742625104410,0.3057798,84272.0,84271.0,0.48496954]
[1742625105803,0.3057798,84272.0,84271.0,0.49866954]
[1742625106307,0.3057798,84272.0,84271.0,0.49878954]
[1742625106607,0.3057798,84272.0,84271.0,0.48508954]
[1742625115412,0.3057798,84272.0,84271.0,0.12428954]
[1742625115710,0.3057798,84272.0,84271.0,0.48508954]
[1742625117511,0.3057798,84272.0,84271.0,0.48504954]
[1742625118206,0.3057798,84272.0,84271.0,0.12424954]
[1742625118407,0.3057798,84272.0,84271.0,0.48504954]
[1742625119110,0.3057798,84272.0,84271.0,0.37280954]
[1742625119316,0.3057798,84272.0,84271.0,0.48504954]
[1742625125619,0.3057798,84272.0,84271.0,0.12424954]
[1742625126112,0.3057798,84272.0,84271.0,0.48504954]
[1742625129127,0.3057798,84272.0,84271.0,0.12424954]
[1742625129530,0.3057798,84272.0,84271.0,0.48504954]
[1742625129920,0.3057798,84272.0,84271.0,0.12424954]
[1742625130518,0.3057798,84272.0,84271.0,0.37280954]
[1742625130726,0.3057798,84272.0,84271.0,0.48512954]
[1742625131319,0.3057798,84272.0,84271.0,0.37280954]
[1742625131631,0.3057798,84272.0,84271.0,0.48548954]
[1742625136927,0.3057798,84272.0,84271.0,0.12468954]
[1742625137119,0.3057798,84272.0,84271.0,0.48548954]
[1742625137727,0.3057798,84272.0,84271.0,0.12468954]
[1742625137923,0.3057798,84272.0,84271.0,0.48548954]
[1742625138824,0.3057798,84272.0,84271.0,0.12468954]
[1742625139135,0.3057798,84272.0,84271.0,0.48548954]
[1742625141932,0.3057798,84272.0,84271.0,0.37280954]
[1742625142236,0.3057798,84272.0,84271.0,0.12496954]
[1742625142531,0.3057798,84272.0,84271.0,0.48576954]
[1742625144236,0.3057798,84272.0,84271.0,0.12496954]
[1742625144635,0.3057798,84272.0,84271.0,0.48576954]
[1742625147822,0.3057798,84272.0,84271.0,0.37280954]
[1742625148036,0.3057798,84272.0,84271.0,0.48572954]
[1742625149627,0.3057798,84272.0,84271.0,0.37280954]
[1742625150241,0.3057798,84272.0,84271.0,0.48568954]
[1742625153040,0.3057798,84272.0,84271.0,0.48564954]
[1742625153237,0.3057798,84272.0,84271.0,0.49934954]
[1742625153640,0.3057798,84272.0,84271.0,0.13854954]
[1742625153839,0.3057798,84272.0,84271.0,0.49934954]
[1742625154832,0.3057798,84272.0,84271.0,0.13854954]
[1742625155033,0.3057798,84272.0,84271.0,0.49930954]
[1742625156345,0.3057798,84272.0,84271.0,0.49926954]
[1742625158241,0.3057798,84272.0,84271.0,0.49930954]
[1742625158644,0.3057798,84272.0,84271.0,0.13850954]
[1742625158843,0.3057798,84272.0,84271.0,0.49930954]
[1742625159840,0.3057798,84272.0,84271.0,0.13850954]
[1742625160146,0.3057798,84272.0,84271.0,0.49930954]
[1742625161240,0.3057798,84272.0,84271.0,0.48560954]
[1742625163047,0.3057798,84272.0,84271.0,0.48552954]
[1742625165745,0.3057798,84272.0,84271.0,0.12472954]
[1742625165941,0.3057798,84272.0,84271.0,0.48552954]
[1742625166744,0.3057798,84272.0,84271.0,0.12472954]
[1742625166944,0.3057798,84272.0,84271.0,0.48552954]
[1742625168456,0.3057798,84272.0,84271.0,0.12472954]
[1742625168645,0.3057798,84272.0,84271.0,0.48552954]
[1742625168846,0.3057798,84272.0,84271.0,0.12472954]
[1742625169048,0.3057798,84272.0,84271.0,0.48552954]
[1742625169843,0.3057798,84272.0,84271.0,0.12472954]
[1742625170047,0.3057798,84272.0,84271.0,0.48552954]
[1742625172754,0.48307219,84272.0,84271.0,0.37280954]
[1742625172953,0.48307219,84272.0,84271.0,0.01200954]
[1742625172954,0.84387219,84272.0,84271.0,0.01200954]
[1742625173153,0.1187098,84271.0,84270.0,8e-05]
[1742625173461,0.1712253,84271.0,84270.0,8e-05]
[1742625173657,0.1712253,84271.0,84264.0,8e-05]
[1742625173658,0.1187169,84266.0,84265.0,0.21373345]
[1742625173958,0.1202369,84266.0,84265.0,0.32649345]
[1742625174159,0.29919939,84266.0,84265.0,0.32657345]
[1742625174344,0.41787191,84266.0,84265.0,0.32657345]
[1742625174548,0.48087191,84266.0,84265.0,0.32649345]
[1742625174750,0.48087191,84266.0,84265.0,0.33838887]
[1742625175860,0.48187191,84266.0,84265.0,0.33838887]
[1742625176161,0.48287191,84266.0,84265.0,0.33838887]
[1742625176555,0.48287191,84266.0,84265.0,0.12465542]
[1742625182768,0.48287191,84266.0,84265.0,0.14565542]
[1742625183158,0.48287191,84266.0,84265.0,0.13835542]
[1742625184059,0.48287191,84266.0,84265.0,0.12465542]
[1742625185563,0.1187183,84265.0,84264.0,8e-05]
[1742625185880,0.12027831,84265.0,84264.0,8e-05]
[1742625186065,0.15247831,84265.0,84264.0,8e-05]
[1742625186273,0.27115083,84265.0,84264.0,8e-05]
[1742625186571,0.1187281,84258.0,84257.0,8e-05]
[1742625186867,0.1187281,84258.0,84249.0,0.28317135]
[1742625186868,0.1187352,84253.0,84249.0,0.39593135]
[1742625187167,0.1202152,84253.0,84249.0,0.39593135]
[1742625187462,0.29898673,84253.0,84249.0,0.39593135]
[1742625187870,0.41767757,84253.0,84249.0,0.39593135]
[1742625188259,0.41867757,84253.0,84249.0,0.39593135]
[1742625188761,0.1187366,84252.0,84251.0,8e-05]
[1742625189068,0.1524566,84252.0,84251.0,8e-05]
[1742625189270,0.1524566,84252.0,84245.0,8e-05]
[1742625189271,0.1187451,84246.0,84245.0,8e-05]
[1742625189565,0.1187535,84240.0,84235.0,0.11276]
[1742625189761,0.1187592,84236.0,84235.0,0.11276]
[1742625190265,0.12031921,84236.0,84235.0,0.11276]
[1742625190656,0.239034,84236.0,84235.0,0.11276]
[1742625191259,0.239034,84236.0,84235.0,0.0329]
[1742625191569,0.1187606,84235.0,84234.0,0.1128]
[1742625191767,0.1837806,84235.0,84234.0,0.1128]
[1742625191969,0.1837806,84235.0,84234.0,8e-05]
[1742625192268,0.30249539,84235.0,84234.0,8e-05]
[1742625192467,0.33389539,84235.0,84234.0,8e-05]
[1742625192670,0.33389539,84235.0,84234.0,0.04497817]
[1742625192867,0.33389539,84235.0,84234.0,0.03268]
[1742625193060,0.33389539,84235.0,84234.0,8e-05]
[1742625193263,0.5140466,84235.0,84234.0,8e-05]
[1742625193567,0.1187662,84231.0,84230.0,0.14544]
[1742625193872,0.1202462,84231.0,84230.0,0.14544]
[1742625194263,0.2389624,84231.0,84230.0,0.15735746]
[1742625194474,0.3034624,84231.0,84230.0,0.15735746]
[1742625194862,0.3044624,84231.0,84230.0,0.15735746]
[1742625195266,0.1187676,84230.0,84229.0,0.36088]
[1742625195461,0.1202876,84230.0,84229.0,0.36088]
[1742625195663,0.1836876,84230.0,84229.0,0.3608]
[1742625195970,0.30240944,84230.0,84229.0,0.3914]
[1742625196367,0.30240944,84230.0,84229.0,0.0306]
[1742625196673,0.30240944,84230.0,84227.0,0.11312]
[1742625196674,0.1187704,84228.0,84227.0,0.11312]
[1742625196876,0.1202504,84228.0,84227.0,8e-05]
[1742625197067,0.29863815,84228.0,84227.0,8e-05]
[1742625197475,0.4173614,84228.0,84227.0,8e-05]
[1742625197877,0.4183614,84228.0,84227.0,8e-05]
[1742625198580,0.1187761,84224.0,84223.0,0.04281651]
[1742625198781,0.1202561,84224.0,84223.0,0.04281651]
[1742625199079,0.29919212,84224.0,84223.0,0.01221651]
[1742625199276,0.1187789,84222.0,84221.0,8e-05]
[1742625199469,0.1187817,84220.0,84219.0,0.033]
[1742625199677,0.1202617,84220.0,84219.0,0.033]
[1742625200174,0.2701934,84220.0,84219.0,0.033]
[1742625200375,0.2701934,84220.0,84219.0,0.0586]
[1742625201269,0.2721934,84220.0,84219.0,0.0586]
[1742625201676,0.1187831,84219.0,84218.0,8e-05]
[1742625201874,0.1516631,84219.0,84218.0,8e-05]
[1742625202076,0.1828631,84219.0,84218.0,8e-05]
[1742625202473,0.30160044,84219.0,84218.0,8e-05]
[1742625203074,0.30160044,84219.0,84218.0,0.1699]
[1742625203481,0.30260044,84219.0,84218.0,0.1699]
[1742625204080,0.30360044,84219.0,84218.0,0.1699]
[1742625209587,0.30360044,84219.0,84218.0,0.14422]
[1742625211587,0.30360044,84219.0,84216.0,8e-05]
[1742625211588,0.1187859,84217.0,84216.0,8e-05]
[1742625211776,0.1202659,84217.0,84216.0,8e-05]
[1742625212290,0.23900465,84217.0,84216.0,8e-05]
[1742625212587,0.1187874,84216.0,84215.0,0.0322]
[1742625212781,0.1823674,84216.0,84215.0,0.0322]
[1742625213482,0.30110897,84216.0,84215.0,0.03228]
[1742625213683,0.30110897,84216.0,84215.0,8e-05]
[1742625213985,0.30110897,84216.0,84209.0,8e-05]
[1742625213986,0.1187958,84210.0,84209.0,8e-05]
[1742625214181,0.12035581,84210.0,84209.0,8e-05]
[1742625214491,0.1188085,84201.0,84200.0,0.1]
[1742625214678,0.1188085,84201.0,84200.0,0.21296]
[1742625215081,0.1188085,84201.0,84200.0,0.1]
[1742625215279,0.23755994,84201.0,84200.0,0.1]
[1742625215480,0.23907994,84201.0,84200.0,0.1]
[1742625215881,0.24007994,84201.0,84200.0,0.1]
[1742625217089,0.27247994,84201.0,84200.0,0.1]
[1742625217278,0.27147994,84201.0,84200.0,0.1]
[1742625217681,0.27247994,84201.0,84200.0,0.1]
[1742625219688,0.27247994,84201.0,84200.0,0.1628]
[1742625223392,0.27247994,84201.0,84200.0,0.27608]
[1742625223794,0.27247994,84201.0,84200.0,0.3948899]
[1742625224294,0.27247994,84201.0,84200.0,0.21328]
[1742625231701,0.27247994,84201.0,84200.0,0.1]
[1742625231900,0.27247994,84201.0,84200.0,0.21332]
[1742625233201,0.30417994,84201.0,84200.0,0.21332]
[1742625234805,0.33527994,84201.0,84200.0,0.21332]
[1742625235504,0.33527994,84201.0,84200.0,0.27604]
[1742625237402,0.33527994,84201.0,84200.0,0.1324]
[1742625237600,0.33527994,84201.0,84200.0,0.2132]
[1742625239306,0.33527994,84201.0,84200.0,0.2761]
[1742625247012,0.30417994,84201.0,84200.0,0.2761]
[1742625253707,0.30417994,84201.0,84200.0,0.27594]
[1742625258612,0.30317994,84201.0,84200.0,0.27594]
[1742625258917,0.30417994,84201.0,84200.0,0.27594]
[1742625259109,0.30417994,84201.0,84200.0,0.1629]
[1742625259307,0.30417994,84201.0,84200.0,0.27586]
[1742625259509,0.30417994,84201.0,84200.0,0.3946699]
[1742625260017,0.30417994,84201.0,84200.0,0.4264699]
[1742625261416,0.30417994,84201.0,84200.0,0.30766]
[1742625262910,0.30417994,84201.0,84200.0,0.4264699]
[1742625264511,0.30417994,84201.0,84200.0,0.30766]
[1742625265718,0.30417994,84201.0,84200.0,0.27586]
[1742625270318,0.30417994,84201.0,84200.0,0.3946699]
[1742625271818,0.30417994,84201.0,84200.0,0.2817099]
[1742625272110,0.30417994,84201.0,84200.0,0.3948699]
[1742625275931,0.30417994,84201.0,84200.0,0.27606]
[1742625278422,0.3608,84208.0,84200.0,0.27606]
[1742625278423,0.3729251,84218.0,84200.0,0.27606]
[1742625278628,0.1187944,84211.0,84210.0,0.3608]
[1742625278815,0.1195144,84211.0,84210.0,0.5933558]
[1742625279021,0.29779762,84211.0,84210.0,0.6594558]
[1742625279223,0.41656176,84211.0,84210.0,0.6594558]
[1742625279424,0.41656176,84211.0,84210.0,0.54066]
[1742625279631,0.41756176,84211.0,84210.0,0.54066]
[1742625281425,0.41756176,84211.0,84210.0,0.90146]
[1742625281626,0.41856176,84211.0,84210.0,0.90246]
[1742625281823,0.41756176,84211.0,84210.0,0.90246]
[1742625282021,0.41856176,84211.0,84210.0,1.0222558]
[1742625282223,0.48266176,84211.0,84210.0,0.3006558]
[1742625282421,0.48266176,84211.0,84210.0,1.0222558]
[1742625283230,0.48266176,84211.0,84210.0,0.90346]
[1742625283827,0.48266176,84211.0,84210.0,0.91871932]
[1742625284020,0.1793074,84211.0,84210.0,2.03719512]
[1742625284331,0.12076414,84211.0,84210.0,2.15019512]
[1742625284827,0.23955854,84211.0,84210.0,1.91839932]
[1742625285025,0.23955854,84211.0,84210.0,1.71533932]
[1742625285026,0.24023854,84211.0,84210.0,1.71533932]
[1742625285620,0.30303854,84211.0,84210.0,1.70008]
[1742625286323,0.48156474,84211.0,84210.0,1.70004]
[1742625289331,0.48156474,84211.0,84210.0,1.58704]
[1742625292336,0.48156474,84211.0,84210.0,0.72428]
[1742625294934,0.49603065,84211.0,84210.0,0.72428]
[1742625299635,0.49603065,84211.0,84210.0,0.00268]
[1742625299833,0.49603065,84211.0,84210.0,0.3628]
[1742625300033,0.49603065,84211.0,84210.0,0.36352]
[1742625304339,0.49603065,84211.0,84210.0,0.39402]
[1742625304741,0.49603065,84211.0,84210.0,0.42462]
[1742625305842,0.49603065,84211.0,84210.0,0.06382]
[1742625306136,0.49603065,84211.0,84210.0,0.42462]
[1742625311937,0.43323065,84211.0,84210.0,0.36352]
[1742625321247,0.43323065,84211.0,84210.0,0.00272]
[1742625321445,0.43323065,84211.0,84210.0,0.002]
[1742625321646,0.43323065,84211.0,84210.0,0.3628]
[1742625321841,0.43323065,84211.0,84210.0,0.36356]
[1742625323956,0.52583065,84211.0,84210.0,0.42676]
[1742625329150,0.52583065,84211.0,84210.0,0.06596]
[1742625329354,0.52583065,84211.0,84210.0,0.42676]
[1742625331761,0.52583065,84211.0,84210.0,0.06596]
[1742625331962,0.52583065,84211.0,84210.0,0.42676]
[1742625332750,0.52583065,84211.0,84210.0,0.06596]
[1742625332955,0.52583065,84211.0,84210.0,0.42676]
[1742625338669,0.52583065,84211.0,84210.0,0.06596]
[1742625339279,0.52583065,84211.0,84210.0,0.42676]
[1742625340672,0.52583065,84211.0,84210.0,0.06596]
[1742625341067,0.52583065,84211.0,84210.0,0.42676]
[1742625341469,0.52583065,84211.0,84210.0,0.06596]
[1742625341776,0.52583065,84211.0,84210.0,0.42676]
[1742625343861,0.52583065,84211.0,84210.0,0.06596]
[1742625344066,0.52583065,84211.0,84210.0,0.42676]
[1742625344969,0.52583065,84211.0,84210.0,0.06596]
[1742625345171,0.52583065,84211.0,84210.0,0.42676]
[1742625353070,0.52583065,84211.0,84210.0,0.06596]
[1742625353467,0.52583065,84211.0,84210.0,0.42676]
[1742625358774,0.52583065,84211.0,84210.0,0.06596]
[1742625358974,0.52583065,84211.0,84210.0,0.42676]
[1742625359777,0.52583065,84211.0,84210.0,0.06596]
[1742625360085,0.52583065,84211.0,84210.0,0.42676]
[1742625361880,0.51136474,84211.0,84210.0,0.42676]
[1742625362184,0.47936474,84211.0,84210.0,0.42676]
[1742625362382,0.47936474,84211.0,84210.0,0.45826]
[1742625362579,0.47936474,84211.0,84210.0,0.5770558]
[1742625363182,0.47936474,84211.0,84210.0,0.42676]
[1742625365585,0.47936474,84211.0,84210.0,0.78756]
[1742625370579,0.47936474,84211.0,84210.0,0.06596]
[1742625370774,0.47936474,84211.0,84210.0,0.42676]
[1742625372290,0.12144414,84211.0,84210.0,0.6581158]
[1742625372489,0.12076414,84211.0,84210.0,0.6581158]
[1742625372993,0.12148414,84211.0,84210.0,0.6581158]
[1742625373992,0.1215144,84211.0,84210.0,0.6581158]
[1742625374193,0.1214744,84211.0,84210.0,0.6581158]
[1742625375886,0.1207944,84211.0,84210.0,0.6581158]
[1742625376190,0.002,84211.0,84210.0,0.6581158]
[1742625376396,0.1207944,84211.0,84210.0,0.6581158]
[1742625378695,0.1214744,84211.0,84210.0,0.6581158]
[1742625379091,0.1214744,84211.0,84210.0,0.87148268]
[1742625379296,0.1207944,84211.0,84210.0,0.87148268]
[1742625380891,0.002,84211.0,84210.0,0.87148268]
[1742625381897,0.002,84211.0,84210.0,1.0189158]
[1742625388305,0.002,84211.0,84210.0,1.2889158]
[1742625395305,0.002,84211.0,84210.0,1.50228268]
[1742625397811,0.002,84211.0,84210.0,1.2889158]
[1742625401315,0.002,84211.0,84210.0,1.75817917]
[1742625402410,0.0655,84217.0,84216.0,0.1187874]
[1742625402605,0.0655,84217.0,84216.0,0.4819074]
[1742625403213,0.0655,84217.0,84216.0,0.5465074]
[1742625403814,0.0655,84217.0,84216.0,0.4350674]
[1742625404014,0.0655,84217.0,84216.0,0.5474674]
[1742625407616,0.0655,84217.0,84216.0,2.1315474]
[1742625410111,0.0982,84217.0,84216.0,2.1315474]
[1742625416315,0.0992,84217.0,84216.0,2.1335474]
[1742625427419,0.0992,84217.0,84216.0,2.59596622]
[1742625429530,0.0992,84217.0,84216.0,3.02072325]
[1742625435031,0.0992,84217.0,84216.0,2.59596622]
[1742625443225,0.0992,84217.0,84216.0,2.48356622]
[1742625443529,0.0992,84217.0,84216.0,2.59588622]
[1742625449340,0.0665,84217.0,84216.0,2.59588622]
[1742625449527,0.0327,84230.0,84229.0,0.118769]
[1742625449838,0.0327,84230.0,84229.0,0.906309]
[1742625450539,0.0594487,84252.0,84229.0,0.78754]
[1742625450727,0.2108084,84251.0,84250.0,0.1187394]
[1742625450927,0.2114884,84251.0,84250.0,0.24517004]
[1742625451128,0.2108084,84251.0,84250.0,0.24517004]
[1742625451329,0.32950205,84251.0,84250.0,0.24517004]
[1742625451541,0.33026205,84251.0,84250.0,0.24517004]
[1742625452747,0.36356205,84251.0,84250.0,0.24517004]
[1742625454036,0.36256205,84251.0,84250.0,0.24517004]
[1742625454233,0.24482265,84251.0,84250.0,0.24517004]
[1742625454743,0.27612265,84251.0,84250.0,0.24517004]
[1742625455139,0.27512265,84251.0,84250.0,0.24617004]
[1742625457846,0.27512265,84251.0,84250.0,0.96777004]
[1742625464542,0.27512265,84251.0,84250.0,1.00057004]
[1742625465551,0.27512265,84251.0,84250.0,1.03097004]
[1742625467042,0.27512265,84251.0,84250.0,1.03077004]
[1742625468650,0.27512265,84251.0,84250.0,0.30917004]
[1742625468954,0.27512265,84251.0,84250.0,1.03077004]
[1742625476459,0.27512265,84251.0,84250.0,0.30917004]
[1742625476758,0.27512265,84251.0,84250.0,1.03077004]
[1742625477157,0.27512265,84251.0,84250.0,0.91861004]
[1742625477354,0.27512265,84251.0,84250.0,1.03069004]
[1742625480959,0.00076,84251.0,84250.0,1.03069004]
[1742625481150,8e-05,84252.0,84251.0,0.118738]
[1742625481355,8e-05,84252.0,84251.0,0.183298]
[1742625481559,0.2433002,84255.0,84254.0,0.1187338]
[1742625481964,0.2433802,84255.0,84254.0,0.1187338]
[1742625482263,0.2441402,84255.0,84254.0,0.1194138]
[1742625482450,0.2433802,84255.0,84254.0,0.1806138]
[1742625484167,0.2443802,84255.0,84254.0,0.1806138]
[1742625484359,0.2443802,84255.0,84254.0,0.9022138]
[1742625484560,0.2433802,84255.0,84254.0,0.9022138]
[1742625484764,0.2433802,84255.0,84254.0,0.9102138]
[1742625485164,0.2433802,84255.0,84254.0,1.12373834]
[1742625488963,0.2433802,84255.0,84254.0,0.9102138]
[1742625491769,8e-05,84255.0,84254.0,0.9102138]
[1742625492073,8e-05,84255.0,84254.0,0.9416138]
[1742625492371,8e-05,84255.0,84254.0,0.9102138]
[1742625492872,0.06378,84255.0,84254.0,0.9102138]
[1742625494868,0.1825124,84255.0,84254.0,0.9102138]
[1742625495868,0.06378,84255.0,84254.0,0.9102138]
[1742625497173,0.1825124,84255.0,84254.0,0.9102138]
[1742625498069,0.06378,84255.0,84254.0,0.9102138]
[1742625499965,0.1825124,84255.0,84254.0,0.9102138]
[1742625502267,0.1825124,84255.0,84254.0,0.1886138]
[1742625502463,0.1825124,84255.0,84254.0,0.9102138]
[1742625504880,8e-05,84255.0,84254.0,0.9102138]
[1742625505079,8e-05,84257.0,84256.0,0.118731]
[1742625505273,8e-05,84257.0,84256.0,0.325531]
[1742625505475,8e-05,84257.0,84256.0,0.605531]
[1742625506178,0.00017806,84259.0,84258.0,0.1187281]
[1742625506379,0.00017806,84259.0,84258.0,0.3894081]
[1742625507979,0.00017806,84259.0,84258.0,0.3914081]
[1742625508683,0.00017806,84259.0,84258.0,0.3954081]
[1742625510076,0.00017806,84259.0,84258.0,0.68001173]
[1742625510778,0.03228,84265.0,84264.0,0.1187197]
[1742625511074,8e-05,84269.0,84268.0,0.1187141]
[1742625511270,8e-05,84269.0,84268.0,0.4801941]
[1742625511472,0.0301,84270.0,84268.0,0.4801941]
[1742625511681,0.0301,84270.0,84269.0,0.1187126]
[1742625511878,0.0301,84270.0,84269.0,0.1841926]
[1742625513682,0.1187057,84274.0,84273.0,0.1187056]
[1742625513876,0.1194657,84274.0,84273.0,0.5922256]
[1742625514187,0.1187057,84274.0,84273.0,0.6243256]
[1742625514379,0.23737259,84274.0,84273.0,0.6243256]
[1742625514677,0.23809259,84274.0,84273.0,0.6243256]
[1742625515077,0.26979259,84274.0,84273.0,0.6555256]
[1742625515578,0.26979259,84274.0,84273.0,1.0263256]
[1742625515983,0.30079259,84274.0,84273.0,1.0263256]
[1742625516875,0.33239259,84274.0,84273.0,1.0263256]
[1742625518886,0.33311259,84274.0,84273.0,1.0263256]
[1742625519287,0.33239259,84274.0,84273.0,1.0263256]
[1742625525094,0.33239259,84274.0,84273.0,0.9142856]
[1742625525286,0.33239259,84274.0,84273.0,1.0263256]
[1742625528902,0.33239259,84274.0,84273.0,0.3047256]
[1742625529193,0.33307259,84274.0,84273.0,1.0263256]
[1742625529387,0.33239259,84274.0,84273.0,1.0263256]
[1742625529885,0.33239259,84274.0,84273.0,0.3047256]
[1742625530087,0.3329926,84274.0,84273.0,1.0263256]
[1742625530300,0.33239259,84274.0,84273.0,1.0263256]
[1742625531793,0.33239259,84274.0,84273.0,0.3047256]
[1742625531992,0.33307259,84274.0,84273.0,1.0263256]
[1742625532193,0.33239259,84274.0,84273.0,1.0263256]
[1742625547004,0.33239259,84274.0,84273.0,0.90762]
[1742625547410,0.33239259,84274.0,84273.0,1.026327]
[1742625547601,0.33239259,84274.0,84273.0,0.90762]
[1742625547797,0.33239259,84274.0,84273.0,1.026327]
[1742625551111,0.33239259,84274.0,84273.0,0.304727]
[1742625551311,0.33307259,84274.0,84273.0,1.026327]
[1742625551516,0.33239259,84274.0,84273.0,1.026327]
[1742625554021,0.33239259,84274.0,84273.0,0.90762]
[1742625554824,0.33239259,84274.0,84273.0,0.914287]
[1742625555027,0.33239259,84274.0,84273.0,1.026327]
[1742625555718,0.33239259,84274.0,84273.0,0.914287]
[1742625555913,0.33239259,84274.0,84273.0,1.026327]
[1742625557026,0.33239259,84274.0,84273.0,0.914287]
[1742625557228,0.33239259,84274.0,84273.0,1.026327]
[1742625559719,0.26979259,84274.0,84273.0,1.026327]
[1742625560029,0.26979259,84274.0,84273.0,1.056827]
[1742625563830,0.11938689,84274.0,84273.0,1.056827]
[1742625564225,0.23809249,84274.0,84273.0,1.056827]
[1742625568921,0.11938689,84274.0,84273.0,1.056827]
[1742625569127,0.1194256,84274.0,84273.0,1.056827]
[1742625570531,0.00072,84274.0,84273.0,1.056827]
[1742625570727,0.00072,84274.0,84273.0,1.27025843]
[1742625573235,0.00072,84274.0,84273.0,1.056827]
[1742625579233,0.1194256,84274.0,84273.0,1.056827]
[1742625579629,0.00072,84274.0,84273.0,1.056827]
[1742625584944,0.1523256,84274.0,84273.0,1.056827]
[1742625590148,0.00072,84274.0,84273.0,1.056827]
[1742625592154,0.00072,84274.0,84273.0,0.335227]
[1742625592451,0.00072,84274.0,84273.0,1.056827]
[1742625598041,0.00072,84274.0,84273.0,0.696027]
[1742625598246,0.00072,84274.0,84273.0,1.056827]
[1742625601145,0.0593479,84281.0,84273.0,1.056827]
[1742625601146,8e-05,84284.0,84281.0,0.0593471]
[1742625601350,0.02966276,84293.0,84292.0,0.1186803]
[1742625601550,0.03042276,84293.0,84292.0,0.5922403]
[1742625601754,0.14831135,84293.0,84292.0,0.5922403]
[1742625601957,0.11864859,84293.0,84292.0,0.6561403]
[1742625602154,0.1186743,84297.0,84293.0,0.1186788]
[1742625602354,0.1186747,84296.0,84293.0,0.1193988]
[1742625602556,0.1186747,84296.0,84293.0,0.1832988]
[1742625602953,0.1186747,84296.0,84295.0,0.118676]
[1742625603266,0.1194747,84296.0,84295.0,0.49270113]
[1742625603463,0.1187547,84296.0,84295.0,0.49270113]
[1742625603668,0.2373878,84296.0,84295.0,0.49270113]
[1742625603958,0.2381078,84296.0,84295.0,0.49270113]
[1742625604150,0.2373878,84296.0,84295.0,0.49770113]
[1742625604356,0.2373878,84296.0,84295.0,0.50370113]
[1742625604763,0.2380678,84296.0,84295.0,0.50370113]
[1742625604966,0.2696678,84296.0,84295.0,0.50370113]
[1742625605168,0.2689878,84296.0,84295.0,0.50370113]
[1742625611752,0.2689878,84296.0,84295.0,0.14290113]
[1742625611957,0.2696678,84296.0,84295.0,0.86450113]
[1742625612157,0.2689878,84296.0,84295.0,0.86450113]
[1742625613361,0.1503131,84296.0,84295.0,0.86450113]
[1742625613674,0.2689877,84296.0,84295.0,0.86450113]
[1742625615372,0.2689877,84296.0,84295.0,0.14290113]
[1742625615560,0.2696677,84296.0,84295.0,0.86450113]
[1742625615763,0.2689877,84296.0,84295.0,0.86450113]
[1742625615966,8e-05,84296.0,84295.0,0.86450113]
[1742625616166,8e-05,84296.0,84295.0,1.12450113]
[1742625616567,0.1186694,84300.0,84299.0,0.118669]
[1742625616766,0.1802694,84300.0,84299.0,0.294089]
[1742625617672,0.1802694,84300.0,84299.0,0.300089]
[1742625617874,0.1802694,84300.0,84299.0,0.304089]
[1742625618975,0.1809494,84300.0,84299.0,0.304089]
[1742625622874,0.1809494,84300.0,84299.0,1.025689]
[1742625625679,0.00068,84300.0,84299.0,1.025689]
[1742625625882,0.00017795,84301.0,84300.0,0.118669]
[1742625626083,0.00017795,84301.0,84300.0,0.119349]
[1742625626285,0.00017795,84301.0,84300.0,0.181849]
[1742625627784,0.00017795,84301.0,84300.0,0.185849]
[1742625628185,0.00017795,84301.0,84300.0,0.191849]
[1742625630490,0.00017795,84301.0,84300.0,0.461849]
[1742625630994,8e-05,84312.0,84311.0,0.1186535]
[1742625631187,0.00076,84312.0,84311.0,0.5914135]
[1742625631390,8e-05,84312.0,84311.0,0.5920935]
[1742625631590,0.00774,84315.0,84314.0,0.1186493]
[1742625631786,0.00842,84315.0,84314.0,0.4801293]
[1742625632092,0.00774,84315.0,84314.0,0.4801293]
[1742625632492,0.00774,84315.0,84314.0,0.5438293]
[1742625632901,0.00774,84315.0,84314.0,0.5448293]
[1742625633902,0.00842,84315.0,84314.0,0.5448293]
[1742625634290,0.00842,84315.0,84314.0,0.5468293]
[1742625634800,0.1270679,84315.0,84314.0,0.5468293]
[1742625635695,0.1270679,84315.0,84314.0,0.9076293]
[1742625636799,0.1263879,84315.0,84314.0,0.9076293]
[1742625638198,0.1263879,84315.0,84314.0,0.1860293]
[1742625638398,0.1270679,84315.0,84314.0,0.9076293]
[1742625638693,0.1263879,84315.0,84314.0,0.9076293]
[1742625639800,0.1270679,84315.0,84314.0,0.9076293]
[1742625641100,0.1592679,84315.0,84314.0,0.9076293]
[1742625652608,0.1592679,84315.0,84314.0,1.7691893]
[1742625652810,0.1585879,84315.0,84314.0,1.7691893]
[1742625653403,0.1898879,84315.0,84314.0,1.7691893]
[1742625660902,0.07124,84315.0,84314.0,1.7691893]
[1742625661908,0.1898879,84315.0,84314.0,1.7691893]
[1742625666020,0.1898879,84315.0,84314.0,1.0475893]
[1742625666221,0.1898879,84315.0,84314.0,1.7691893]
[1742625675426,0.1585879,84315.0,84314.0,1.7691893]
[1742625676033,0.00774,84315.0,84314.0,1.7691893]
[1742625676330,0.1263879,84315.0,84314.0,1.7691893]
[1742625686540,0.1263879,84315.0,84314.0,2.05332682]
[1742625691037,0.00774,84315.0,84314.0,2.05332682]
[1742625691441,0.1263879,84315.0,84314.0,2.05332682]
[1742625694337,0.00774,84315.0,84314.0,2.05332682]
[1742625694739,0.00774,84315.0,84314.0,1.7691893]
[1742625698538,0.00774,84315.0,84314.0,1.0475893]
[1742625698744,0.00774,84315.0,84314.0,1.7691893]
[1742625702848,0.00774,84315.0,84314.0,2.05394562]
[1742625705547,0.00774,84315.0,84314.0,2.16602562]
[1742625712554,0.1263879,84315.0,84314.0,2.16602562]
[1742625714548,0.1263879,84315.0,84314.0,2.05394562]
[1742625714748,0.1263879,84315.0,84314.0,2.04725632]
[1742625714981,0.1888879,84315.0,84314.0,2.04725632]
[1742625715950,0.1888879,84315.0,84314.0,2.16590562]
[1742625716549,0.1888879,84315.0,84314.0,1.8811493]
[1742625720056,0.1888879,84315.0,84314.0,1.1595493]
[1742625720359,0.1888879,84315.0,84314.0,1.8811493]
[1742625721955,0.00774,84315.0,84314.0,1.8811493]
[1742625722471,0.1263879,84315.0,84314.0,1.8811493]
[1742625724758,0.1263879,84315.0,84314.0,2.16590562]
[1742625728455,0.1263879,84315.0,84314.0,1.44430562]
[1742625728671,0.1263879,84315.0,84314.0,2.16590562]
[1742625735371,0.1263879,84315.0,84314.0,1.44430562]